Workbook

Sheet DQ Triathlon Timing Master
A1: Overall | B1: Bib # | C1: Name | D1: Category | E1: T-size | F1: Age | G1: Swimmer | H1: Race time | I1: Swim Split | J1: T-size | K1: Age | L1: Cyclist | M1: Race time | N1: Bike Split | O1: T-size | P1: Age | Q1: T-size | R1: Age | S1: Runnner | T1: Race time | U1: Run Split | V1: Total time
A3: 1 | B3: 526 | C3: Rane Gibbs | D3: Female under 10 | G3: =C3 -> Rane Gibbs | H3: 00:04:43 | I3: =H3 -> 00:04:43 | J3: L | L3: =C3 -> Rane Gibbs | M3: 00:29:33 | N3: =M3-I3 -> 00:24:50 | O3: L | Q3: M | S3: =C3 -> Rane Gibbs | T3: 00:43:23 | U3: =T3-M3 -> 00:13:50 | V3: =T3 -> 00:43:23
A4: 2 | B4: 527
A5: 3 | B5: 532
A6: 4 | B6: 548 | C6: Ali Bertrim | D6: Female 10 + | H6: 00:03:56 | I6: =H6 -> 00:03:56 | J6: M | M6: 00:24:44 | N6: =M6-I6 -> 00:20:48 | O6: M | Q6: M | T6: 00:34:39 | U6: =T6-M6 -> 00:09:55 | V6: =T6 -> 00:34:39
A7: 5 | B7: 534 | C7: Jasmine Geurin | D7: Female 10 + | H7: 00:04:51 | I7: =H7 -> 00:04:51 | J7: M | M7: 00:33:04 | N7: =M7-I7 -> 00:28:13 | O7: m | Q7: L | T7: 00:48:34 | U7: =T7-M7 -> 00:15:30 | V7: =T7 -> 00:48:34
A8: 6 | B8: 579 | C8: Sarah McCann | D8: Female 10 + | H8: 00:07:16 | I8: =H8 -> 00:07:16 | J8: L | M8: 00:37:01 | N8: =M8-I8 -> 00:29:45 | O8: L | Q8: L | T8: 00:52:43 | U8: =T8-M8 -> 00:15:42 | V8: =T8 -> 00:52:43
A10: 7 | B10: 544 | C10: Christian Munch | D10: Male under 10 | H10: 00:04:15 | I10: =H10 -> 00:04:15 | J10: M | M10: 00:25:15 | N10: =M10-I10 -> 00:21:00 | O10: M | Q10: M | T10: 00:33:22 | U10: =T10-M10 -> 00:08:07 | V10: =T10 -> 00:33:22
A11: 8 | B11: 547 | C11: James Bertrim | D11: Male under 10 | H11: 00:04:33 | I11: 00:04:33 | J11: M | M11: 00:24:15 | N11: 00:19:42 | O11: L | Q11: M | T11: 00:33:43 | U11: 00:09:28 | V11: 00:33:43
A12: 9 | B12: 542 | C12: Kaeden Ward | D12: Male under 10 | H12: 00:04:11 | I12: 00:04:11 | J12: S | M12: 00:27:10 | N12: 00:22:59 | O12: S | Q12: S | T12: 00:35:04 | U12: 00:07:54 | V12: 00:35:04
A13: 10 | B13: 543 | C13: Noah Rioux | D13: Male under 10 | H13: 00:04:59 | I13: 00:04:59 | J13: L | M13: 00:26:59 | N13: 00:22:00 | O13: L | Q13: M | T13: 00:35:28 | U13: 00:08:29 | V13: 00:35:28
A14: 11 | B14: 530 | C14: Andrew Zuliani | D14: Male under 10 | H14: 00:05:36 | I14: 00:05:36 | J14: M | M14: 00:31:02 | N14: 00:25:26 | O14: XL | Q14: L | T14: 00:39:49 | U14: 00:08:47 | V14: 00:39:49 | AA14: 583
A15: 12 | B15: 531 | C15: Jackson Culin | D15: Male under 10 | H15: 00:05:10 | I15: 00:05:10 | J15: L | M15: 00:28:44 | N15: 00:23:34 | O15: M | Q15: L | T15: 00:40:48 | U15: 00:12:04 | V15: 00:40:48 | AA15: 584
A16: 13 | B16: 541 | C16: Cole Macey | D16: Male under 10 | H16: 00:04:52 | I16: 00:04:52 | J16: L | M16: 00:29:32 | N16: 00:24:40 | O16: S | Q16: S | T16: 00:41:03 | U16: 00:11:31 | V16: 00:41:03
A17: 14 | B17: 549 | C17: Ethan Mourre | D17: Male under 10 | H17: 00:05:39 | I17: 00:05:39 | J17: M | M17: 00:27:56 | N17: 00:22:17 | O17: M | Q17: M | T17: 00:41:17 | U17: 00:13:21 | V17: 00:41:17
A18: 15 | B18: 546 | C18: Nicholas Gauthier | D18: Male under 10 | H18: 00:05:36 | I18: 00:05:36 | J18: L | M18: 00:32:00 | N18: 00:26:24 | O18: M | Q18: L | T18: 00:46:06 | U18: 00:14:06 | V18: 00:46:06
A19: 16 | B19: 540 | C19: Jerome St. Louis | D19: Male under 10 | H19: 00:06:31 | I19: 00:06:31 | J19: M | M19: 00:45:22 | N19: 00:38:51 | O19: M | Q19: M | T19: 00:56:35 | U19: 00:11:13 | V19: 00:56:35
A20: 17
A21: 18 | B21: 577 | C21: Oliver Talillefer | D21: Male 10 + | H21: 00:03:54 | I21: =H21 -> 00:03:54 | J21: M | M21: 00:22:05 | N21: =M21-I21 -> 00:18:11 | O21: M | Q21: S | T21: 00:29:22 | U21: =T21-M21 -> 00:07:17 | V21: =T21 -> 00:29:22
A22: 19 | B22: 563 | C22: Robert De La Riva | D22: Male 10 + | H22: 00:04:05 | I22: 00:04:05 | J22: M | M22: 00:23:55 | N22: 00:19:50 | O22: S | Q22: M | T22: 00:32:53 | U22: 00:08:58 | V22: 00:32:53
B23: 560 | C23: Henri Lefebvre | D23: Male 10 + | H23: 00:04:17 | I23: 00:04:17 | J23: L | M23: 00:25:59 | N23: 00:21:42 | O23: M | Q23: s | T23: 00:35:01 | U23: 00:09:02 | V23: 00:35:01
B24: 580 | C24: Antione Oullette | D24: Male 10 + | H24: 00:04:21 | I24: 00:04:21 | J24: S | M24: 00:25:08 | N24: 00:20:47 | O24: M | Q24: S | T24: 00:35:06 | U24: 00:09:58 | V24: 00:35:06
A25: 20 | B25: 578 | C25: Max Smith | D25: Male 10 + | H25: 00:05:08 | I25: 00:05:08 | J25: L | M25: 00:27:13 | N25: 00:22:05 | O25: L | Q25: L | T25: 00:39:08 | U25: 00:11:55 | V25: 00:39:08
A26: 21 | B26: 538 | C26: Alexandre Gauthier | D26: Male 10 + | H26: 00:04:34 | I26: 00:04:34 | J26: M | M26: 00:29:06 | N26: 00:24:32 | O26: M | Q26: M | T26: 00:39:28 | U26: 00:10:22 | V26: 00:39:28
B27: 527 | C27: Alex Zuliani | D27: Male 10 + | H27: 00:05:04 | I27: 00:05:04 | J27: L | M27: 00:31:02 | N27: 00:25:58 | O27: M | Q27: S | T27: 00:44:14 | U27: 00:13:12 | V27: 00:44:14
A28: 22 | B28: 561 | C28: Liam Michaud | D28: Male 10 + | H28: 00:05:01 | I28: 00:05:01 | J28: M | M28: 00:33:51 | N28: 00:28:50 | O28: M | Q28: M | T28: 00:44:44 | U28: 00:10:53 | V28: 00:44:44
A29: 23 | B29: 562 | C29: Logan Giroux | D29: Male 10 + | H29: 00:05:59 | I29: 00:05:59 | J29: L | M29: 00:34:22 | N29: 00:28:23 | O29: M | Q29: L | T29: 00:47:24 | U29: 00:13:02 | V29: 00:47:24
A30: 24 | I30: 00:00:00 | J30: M | N30: =M30-I30 -> 00:00:00 | O30: M | U30: =T30-M30 -> 00:00:00 | V30: =T30 -> 00:00:00
A31: 25 | I31: 00:00:00 | J31: L | N31: 00:00:00 | O31: L | Q31: L | U31: 00:00:00 | V31: 00:00:00
A32: 26 | I32: 00:00:00 | J32: M | N32: 00:00:00 | O32: M | Q32: M | U32: 00:00:00 | V32: 00:00:00
A33: 27 | I33: 00:00:00 | J33: M | N33: 00:00:00 | O33: M | Q33: M | U33: 00:00:00 | V33: 00:00:00
A34: 28 | I34: 00:00:00 | J34: M | N34: 00:00:00 | O34: M | Q34: M | U34: 00:00:00 | V34: 00:00:00
A35: 29 | I35: 00:00:00 | J35: S | N35: 00:00:00 | O35: S | Q35: S | U35: 00:00:00 | V35: 00:00:00
A36: 30 | I36: 00:00:00 | J36: s | N36: 00:00:00 | O36: s | Q36: s | U36: 00:00:00 | V36: 00:00:00
A37: 31 | I37: 00:00:00 | N37: 00:00:00 | U37: 00:00:00 | V37: 00:00:00
A38: 32 | I38: 00:00:00 | N38: 00:00:00 | U38: 00:00:00 | V38: 00:00:00
A39: 33 | I39: 00:00:00 | N39: 00:00:00 | U39: 00:00:00 | V39: 00:00:00
A40: 34 | I40: 00:00:00 | N40: 00:00:00 | U40: 00:00:00 | V40: 00:00:00
A41: 35 | I41: 00:00:00 | N41: 00:00:00 | U41: 00:00:00 | V41: 00:00:00
A42: 36 | I42: 00:00:00 | N42: 00:00:00 | U42: 00:00:00 | V42: 00:00:00
A43: 37 | I43: 00:00:00 | N43: 00:00:00 | U43: 00:00:00 | V43: 00:00:00
A44: 38 | I44: 00:00:00 | N44: 00:00:00 | U44: 00:00:00 | V44: 00:00:00
A45: 39 | I45: 00:00:00 | N45: 00:00:00 | U45: 00:00:00 | V45: 00:00:00
I46: 00:00:00 | N46: 00:00:00 | U46: 00:00:00 | V46: 00:00:00
I47: 00:00:00 | N47: 00:00:00 | U47: 00:00:00 | V47: 00:00:00
I48: 00:00:00 | N48: 00:00:00 | U48: 00:00:00 | V48: 00:00:00
I49: 00:00:00 | N49: 00:00:00 | U49: 00:00:00 | V49: 00:00:00
I50: 00:00:00 | N50: 00:00:00 | U50: 00:00:00 | V50: 00:00:00
I51: 00:00:00 | N51: 00:00:00 | U51: 00:00:00 | V51: 00:00:00
I52: 00:00:00 | N52: 00:00:00 | U52: 00:00:00 | V52: 00:00:00
I53: 00:00:00 | N53: 00:00:00 | U53: 00:00:00 | V53: 00:00:00
I54: 00:00:00 | N54: 00:00:00 | U54: 00:00:00 | V54: 00:00:00
I55: 00:00:00 | N55: 00:00:00 | U55: 00:00:00 | V55: 00:00:00
I56: 00:00:00 | N56: 00:00:00 | U56: 00:00:00 | V56: 00:00:00
I57: 00:00:00 | N57: 00:00:00 | U57: 00:00:00 | V57: 00:00:00
I58: 00:00:00 | N58: 00:00:00 | U58: 00:00:00 | V58: 00:00:00
I59: 00:00:00 | N59: 00:00:00 | U59: 00:00:00 | V59: 00:00:00
I60: 00:00:00 | N60: 00:00:00 | U60: 00:00:00 | V60: 00:00:00
I61: 00:00:00 | N61: 00:00:00 | U61: 00:00:00 | V61: 00:00:00
I62: =H62 -> 00:00:00 | N62: 00:00:00 | U62: 00:00:00 | V62: 00:00:00
I63: 00:00:00 | N63: =M63-I63 -> 00:00:00 | U63: =T63-M63 -> 00:00:00 | V63: =T63 -> 00:00:00
I64: 00:00:00 | N64: 00:00:00 | U64: 00:00:00 | V64: 00:00:00
I65: 00:00:00 | N65: 00:00:00 | U65: 00:00:00 | V65: 00:00:00
I66: 00:00:00 | N66: 00:00:00 | U66: 00:00:00 | V66: 00:00:00
I67: 00:00:00 | N67: 00:00:00 | U67: 00:00:00 | V67: 00:00:00
I68: 00:00:00 | N68: 00:00:00 | U68: 00:00:00 | V68: 00:00:00
I69: 00:00:00 | N69: 00:00:00 | U69: 00:00:00 | V69: 00:00:00
I70: 00:00:00 | N70: 00:00:00 | U70: 00:00:00 | V70: 00:00:00
I71: 00:00:00 | N71: 00:00:00 | U71: 00:00:00 | V71: 00:00:00
I72: 00:00:00 | N72: 00:00:00 | U72: 00:00:00 | V72: 00:00:00
I73: 00:00:00 | N73: 00:00:00 | U73: 00:00:00 | V73: 00:00:00
I74: 00:00:00 | N74: 00:00:00 | U74: 00:00:00 | V74: 00:00:00
I75: 00:00:00 | N75: 00:00:00 | U75: 00:00:00 | V75: 00:00:00
I76: 00:00:00 | N76: 00:00:00 | U76: 00:00:00 | V76: 00:00:00
I77: 00:00:00 | N77: 00:00:00 | U77: 00:00:00 | V77: 00:00:00
I78: 00:00:00 | N78: 00:00:00 | U78: 00:00:00 | V78: 00:00:00
I79: 00:00:00 | N79: 00:00:00 | U79: 00:00:00 | V79: 00:00:00
I80: 00:00:00 | N80: 00:00:00 | U80: 00:00:00 | V80: 00:00:00
I81: 00:00:00 | N81: 00:00:00 | U81: 00:00:00 | V81: 00:00:00
I82: 00:00:00 | N82: 00:00:00 | U82: 00:00:00 | V82: 00:00:00
I83: 00:00:00 | N83: 00:00:00 | U83: 00:00:00 | V83: 00:00:00
I84: 00:00:00 | N84: 00:00:00 | U84: 00:00:00 | V84: 00:00:00
I85: 00:00:00 | N85: 00:00:00 | U85: 00:00:00 | V85: 00:00:00
I86: 00:00:00 | N86: 00:00:00 | U86: 00:00:00 | V86: 00:00:00
I87: 00:00:00 | N87: 00:00:00 | U87: 00:00:00 | V87: 00:00:00
I88: 00:00:00 | N88: 00:00:00 | U88: 00:00:00 | V88: 00:00:00
I89: 00:00:00 | N89: 00:00:00 | U89: 00:00:00 | V89: 00:00:00
I90: 00:00:00 | N90: 00:00:00 | U90: 00:00:00 | V90: 00:00:00
I91: 00:00:00 | N91: 00:00:00 | U91: 00:00:00 | V91: 00:00:00
I92: 00:00:00 | N92: 00:00:00 | U92: 00:00:00 | V92: 00:00:00
I93: 00:00:00 | N93: 00:00:00 | U93: 00:00:00 | V93: 00:00:00
I94: 00:00:00 | N94: 00:00:00 | U94: 00:00:00 | V94: 00:00:00
I95: 00:00:00 | N95: 00:00:00 | U95: 00:00:00 | V95: 00:00:00
I96: 00:00:00 | N96: 00:00:00 | U96: 00:00:00 | V96: 00:00:00
I97: 00:00:00 | N97: 00:00:00 | U97: 00:00:00 | V97: 00:00:00
I98: 00:00:00 | N98: 00:00:00 | U98: 00:00:00 | V98: 00:00:00
I99: 00:00:00 | N99: 00:00:00 | U99: 00:00:00 | V99: 00:00:00
I100: 00:00:00 | N100: 00:00:00 | U100: 00:00:00 | V100: 00:00:00
I101: 00:00:00 | N101: 00:00:00 | U101: 00:00:00 | V101: 00:00:00
I102: 00:00:00 | N102: 00:00:00 | U102: 00:00:00 | V102: 00:00:00
I103: 00:00:00 | N103: 00:00:00 | U103: 00:00:00 | V103: 00:00:00
I104: 00:00:00 | N104: 00:00:00 | U104: 00:00:00 | V104: 00:00:00
I105: 00:00:00 | N105: 00:00:00 | U105: 00:00:00 | V105: 00:00:00
I106: 00:00:00 | N106: 00:00:00 | U106: 00:00:00 | V106: 00:00:00
I107: 00:00:00 | N107: 00:00:00 | U107: 00:00:00 | V107: 00:00:00
I108: 00:00:00 | N108: 00:00:00 | U108: 00:00:00 | V108: 00:00:00
I109: 00:00:00 | N109: =#REF!-H109 ->  | U109: 00:00:00 | V109: 00:00:00
I110: 00:00:00 | N110: =#REF!-H110 ->  | U110: 00:00:00 | V110: 00:00:00
I111: 00:00:00 | N111: =#REF!-H111 ->  | U111: 00:00:00 | V111: 00:00:00
I112: 00:00:00 | N112: =#REF!-H112 ->  | U112: 00:00:00 | V112: 00:00:00
I113: 00:00:00 | N113: =#REF!-H113 ->  | U113: 00:00:00 | V113: 00:00:00
I114: 00:00:00 | N114: =#REF!-H114 ->  | U114: 00:00:00 | V114: 00:00:00
I115: 00:00:00 | N115: =#REF!-H115 ->  | U115: 00:00:00 | V115: 00:00:00
I116: 00:00:00 | N116: =#REF!-H116 ->  | U116: 00:00:00 | V116: 00:00:00
I117: 00:00:00 | N117: =#REF!-H117 ->  | U117: 00:00:00 | V117: 00:00:00
I118: 00:00:00 | N118: =#REF!-H118 ->  | U118: 00:00:00 | V118: 00:00:00
I119: 00:00:00 | N119: =#REF!-H119 ->  | U119: 00:00:00 | V119: 00:00:00
I120: 00:00:00 | N120: =#REF!-H120 ->  | U120: 00:00:00 | V120: 00:00:00
I121: 00:00:00 | N121: =#REF!-H121 ->  | U121: 00:00:00 | V121: 00:00:00
I122: 00:00:00 | N122: =#REF!-H122 ->  | U122: 00:00:00 | V122: 00:00:00
B123: =B121+1 -> 1 | D123: DQ | F123: f11 | I123: 00:00:00 | N123: =#REF!-H123 ->  | U123: 00:00:00 | V123: 00:00:00
B124: Time | I124: 00:00:00 | N124: =#REF!-H124 ->  | U124: 00:00:00 | V124: 00:00:00
B125: =B123+1 -> 2 | D125: DQ | F125: m11 | I125: 00:00:00 | N125: =#REF!-H125 ->  | U125: 00:00:00 | V125: 00:00:00
B126: Time | I126: =H126 -> 00:00:00 | N126: =#REF!-H126 ->  | U126: 00:00:00 | V126: 00:00:00
B127: =B125+1 -> 3 | D127: DQ | F127: m10 | I127: 00:00:00 | N127: =#REF!-H127 ->  | U127: =T127-#REF! ->  | V127: =SUM(U127,I127,N127,#REF!,) -> 
B128: Time | I128: 00:00:00 | N128: =#REF!-H128 ->  | U128: =T128-#REF! ->  | V128: =SUM(U128,I128,N128,#REF!,) -> 
B129: =B127+1 -> 4 | D129: DQ | F129: f10 | I129: 00:00:00 | N129: =#REF!-H129 ->  | U129: =T129-#REF! ->  | V129: =SUM(U129,I129,N129,#REF!,) -> 
B130: Time | I130: 00:00:00 | N130: =#REF!-H130 ->  | U130: =T130-#REF! ->  | V130: =SUM(U130,I130,N130,#REF!,) -> 
B131: =B129+1 -> 5 | D131: DQ | F131: m8 | I131: 00:00:00 | N131: =#REF!-H131 ->  | U131: =T131-#REF! ->  | V131: =SUM(U131,I131,N131,#REF!,) -> 
B132: Time | I132: 00:00:00 | N132: =#REF!-H132 ->  | U132: =T132-#REF! ->  | V132: =SUM(U132,I132,N132,#REF!,) -> 
B133: =B131+1 -> 6 | D133: DQ | F133: m12 | I133: 00:00:00 | N133: =#REF!-H133 ->  | U133: =T133-#REF! ->  | V133: =SUM(U133,I133,N133,#REF!,) -> 
B134: Time | I134: 00:00:00 | N134: =#REF!-H134 ->  | U134: =T134-#REF! ->  | V134: =SUM(U134,I134,N134,#REF!,) -> 
B135: =B133+1 -> 7 | D135: DQ | F135: m11 | I135: 00:00:00 | N135: =#REF!-H135 ->  | U135: =T135-#REF! ->  | V135: =SUM(U135,I135,N135,#REF!,) -> 
B136: Time | I136: 00:00:00 | N136: =#REF!-H136 ->  | U136: =T136-#REF! ->  | V136: =SUM(U136,I136,N136,#REF!,) -> 
B137: =B135+1 -> 8 | D137: DQ | F137: f7 | I137: 00:00:00 | N137: =#REF!-H137 ->  | U137: =T137-#REF! ->  | V137: =SUM(U137,I137,N137,#REF!,) -> 
B138: Time | I138: 00:00:00 | N138: =#REF!-H138 ->  | U138: =T138-#REF! ->  | V138: =SUM(U138,I138,N138,#REF!,) -> 
B139: =B137+1 -> 9 | D139: DQ | F139: f9 | I139: 00:00:00 | N139: =#REF!-H139 ->  | U139: =T139-#REF! ->  | V139: =SUM(U139,I139,N139,#REF!,) -> 
B140: Time | I140: 00:00:00 | N140: =#REF!-H140 ->  | U140: =T140-#REF! ->  | V140: =SUM(U140,I140,N140,#REF!,) -> 
B141: =B139+1 -> 10 | D141: DQ | F141: m12 | I141: 00:00:00 | N141: =#REF!-H141 ->  | U141: =T141-#REF! ->  | V141: =SUM(U141,I141,N141,#REF!,) -> 
B142: Time | I142: 00:00:00 | N142: =#REF!-H142 ->  | U142: =T142-#REF! ->  | V142: =SUM(U142,I142,N142,#REF!,) -> 
B143: =B141+1 -> 11 | D143: DQ | F143: m? | I143: 00:00:00 | N143: =#REF!-H143 ->  | U143: =T143-#REF! ->  | V143: =SUM(U143,I143,N143,#REF!,) -> 
B144: Time | I144: 00:00:00 | N144: =#REF!-H144 ->  | U144: =T144-#REF! ->  | V144: =SUM(U144,I144,N144,#REF!,) -> 
B145: =B143+1 -> 12 | D145: DQ | F145: m12 | I145: 00:00:00 | N145: =#REF!-H145 ->  | U145: =T145-#REF! ->  | V145: =SUM(U145,I145,N145,#REF!,) -> 
B146: Time | I146: 00:00:00 | N146: =#REF!-H146 ->  | U146: =T146-#REF! ->  | V146: =SUM(U146,I146,N146,#REF!,) -> 
B147: =B145+1 -> 13 | D147: DQ | F147: f8 | I147: 00:00:00 | N147: =#REF!-H147 ->  | U147: =T147-#REF! ->  | V147: =SUM(U147,I147,N147,#REF!,) -> 
B148: Time | I148: 00:00:00 | N148: =#REF!-H148 ->  | U148: =T148-#REF! ->  | V148: =SUM(U148,I148,N148,#REF!,) -> 
B149: =B147+1 -> 14 | D149: DQ | F149: m12 | I149: 00:00:00 | N149: =#REF!-H149 ->  | U149: =T149-#REF! ->  | V149: =SUM(U149,I149,N149,#REF!,) -> 
B150: Time | I150: 00:00:00 | N150: =#REF!-H150 ->  | U150: =T150-#REF! ->  | V150: =SUM(U150,I150,N150,#REF!,) -> 
B151: =B149+1 -> 15 | D151: DQ | F151: f11 | I151: 00:00:00 | N151: =#REF!-H151 ->  | U151: =T151-#REF! ->  | V151: =SUM(U151,I151,N151,#REF!,) -> 
B152: Time | I152: 00:00:00 | N152: =#REF!-H152 ->  | U152: =T152-#REF! ->  | V152: =SUM(U152,I152,N152,#REF!,) -> 
B153: =B151+1 -> 16 | I153: 00:00:00 | N153: =#REF!-H153 ->  | U153: =T153-#REF! ->  | V153: =SUM(U153,I153,N153,#REF!,) -> 
B154: Time | I154: 00:00:00 | N154: =#REF!-H154 ->  | U154: =T154-#REF! ->  | V154: =SUM(U154,I154,N154,#REF!,) -> 
B155: =B153+1 -> 17 | I155: 00:00:00 | N155: =#REF!-H155 ->  | U155: =T155-#REF! ->  | V155: =SUM(U155,I155,N155,#REF!,) -> 
B156: Time | I156: 00:00:00 | N156: =#REF!-H156 ->  | U156: =T156-#REF! ->  | V156: =SUM(U156,I156,N156,#REF!,) -> 
B157: =B155+1 -> 18 | I157: 00:00:00 | N157: =#REF!-H157 ->  | U157: =T157-#REF! ->  | V157: =SUM(U157,I157,N157,#REF!,) -> 
B158: Time | I158: 00:00:00 | N158: =#REF!-H158 ->  | U158: =T158-#REF! ->  | V158: =SUM(U158,I158,N158,#REF!,) -> 
B159: =B157+1 -> 19 | I159: 00:00:00 | N159: =#REF!-H159 ->  | U159: =T159-#REF! ->  | V159: =SUM(U159,I159,N159,#REF!,) -> 
B160: Time | I160: 00:00:00 | N160: =#REF!-H160 ->  | U160: =T160-#REF! ->  | V160: =SUM(U160,I160,N160,#REF!,) -> 
B161: =B159+1 -> 20 | I161: 00:00:00 | N161: =#REF!-H161 ->  | U161: =T161-#REF! ->  | V161: =SUM(U161,I161,N161,#REF!,) -> 
B162: Time | I162: 00:00:00 | N162: =#REF!-H162 ->  | U162: =T162-#REF! ->  | V162: =SUM(U162,I162,N162,#REF!,) -> 
B163: =B161+1 -> 21 | I163: 00:00:00 | N163: =#REF!-H163 ->  | U163: =T163-#REF! ->  | V163: =SUM(U163,I163,N163,#REF!,) -> 
B164: Time | I164: 00:00:00 | N164: =#REF!-H164 ->  | U164: =T164-#REF! ->  | V164: =SUM(U164,I164,N164,#REF!,) -> 
B165: =B163+1 -> 22 | I165: 00:00:00 | N165: =#REF!-H165 ->  | U165: =T165-#REF! ->  | V165: =SUM(U165,I165,N165,#REF!,) -> 
B166: Time | I166: 00:00:00 | N166: =#REF!-H166 ->  | U166: =T166-#REF! ->  | V166: =SUM(U166,I166,N166,#REF!,) -> 
B167: =B165+1 -> 23 | I167: 00:00:00 | N167: =#REF!-H167 ->  | U167: =T167-#REF! ->  | V167: =SUM(U167,I167,N167,#REF!,) -> 
I168: 00:00:00 | N168: =#REF!-H168 ->  | U168: =T168-#REF! ->  | V168: =SUM(U168,I168,N168,#REF!,) -> 
I169: 00:00:00 | N169: =#REF!-H169 ->  | U169: =T169-#REF! ->  | V169: =SUM(U169,I169,N169,#REF!,) -> 
I170: 00:00:00 | N170: =#REF!-H170 ->  | U170: =T170-#REF! ->  | V170: =SUM(U170,I170,N170,#REF!,) -> 
I171: 00:00:00 | N171: =#REF!-H171 ->  | U171: =T171-#REF! ->  | V171: =SUM(U171,I171,N171,#REF!,) -> 
I172: 00:00:00 | N172: =#REF!-H172 ->  | U172: =T172-#REF! ->  | V172: =SUM(U172,I172,N172,#REF!,) -> 
I173: 00:00:00 | N173: =#REF!-H173 ->  | U173: =T173-#REF! ->  | V173: =SUM(U173,I173,N173,#REF!,) -> 
I174: 00:00:00 | N174: =#REF!-H174 ->  | U174: =T174-#REF! ->  | V174: =SUM(U174,I174,N174,#REF!,) -> 
I175: 00:00:00 | N175: =#REF!-H175 ->  | U175: =T175-#REF! ->  | V175: =SUM(U175,I175,N175,#REF!,) -> 
I176: 00:00:00 | N176: =#REF!-H176 ->  | U176: =T176-#REF! ->  | V176: =SUM(U176,I176,N176,#REF!,) -> 
I177: 00:00:00 | N177: =#REF!-H177 ->  | U177: =T177-#REF! ->  | V177: =SUM(U177,I177,N177,#REF!,) -> 
I178: 00:00:00 | N178: =#REF!-H178 ->  | U178: =T178-#REF! ->  | V178: =SUM(U178,I178,N178,#REF!,) -> 
I179: 00:00:00 | N179: =#REF!-H179 ->  | U179: =T179-#REF! ->  | V179: =SUM(U179,I179,N179,#REF!,) -> 
I180: 00:00:00 | N180: =#REF!-H180 ->  | U180: =T180-#REF! ->  | V180: =SUM(U180,I180,N180,#REF!,) -> 
I181: 00:00:00 | N181: =#REF!-H181 ->  | U181: =T181-#REF! ->  | V181: =SUM(U181,I181,N181,#REF!,) -> 
I182: 00:00:00 | N182: =#REF!-H182 ->  | U182: =T182-#REF! ->  | V182: =SUM(U182,I182,N182,#REF!,) -> 
I183: 00:00:00 | N183: =#REF!-H183 ->  | U183: =T183-#REF! ->  | V183: =SUM(U183,I183,N183,#REF!,) -> 
I184: 00:00:00 | N184: =#REF!-H184 ->  | U184: =T184-#REF! ->  | V184: =SUM(U184,I184,N184,#REF!,) -> 
I185: 00:00:00 | N185: =#REF!-H185 ->  | U185: =T185-#REF! ->  | V185: =SUM(U185,I185,N185,#REF!,) -> 
I186: 00:00:00 | N186: =#REF!-H186 ->  | U186: =T186-#REF! ->  | V186: =SUM(U186,I186,N186,#REF!,) -> 
I187: 00:00:00 | N187: =#REF!-H187 ->  | U187: =T187-#REF! ->  | V187: =SUM(U187,I187,N187,#REF!,) -> 
I188: 00:00:00 | N188: =#REF!-H188 ->  | U188: =T188-#REF! ->  | V188: =SUM(U188,I188,N188,#REF!,) -> 
I189: 00:00:00 | N189: =#REF!-H189 ->  | U189: =T189-#REF! ->  | V189: =SUM(U189,I189,N189,#REF!,) -> 
I190: =H190 -> 00:00:00 | N190: =#REF!-H190 ->  | U190: =T190-#REF! ->  | V190: =SUM(U190,I190,N190,#REF!,) -> 
I191: 00:00:00 | N191: =#REF!-H191 ->  | U191: =T191-#REF! ->  | V191: =SUM(U191,I191,N191,#REF!,) -> 
I192: 00:00:00 | N192: =#REF!-H192 ->  | U192: =T192-#REF! ->  | V192: =SUM(U192,I192,N192,#REF!,) -> 
I193: 00:00:00 | N193: =#REF!-H193 ->  | U193: =T193-#REF! ->  | V193: =SUM(U193,I193,N193,#REF!,) -> 
I194: 00:00:00 | N194: =#REF!-H194 ->  | U194: =T194-#REF! ->  | V194: =SUM(U194,I194,N194,#REF!,) -> 
I195: 00:00:00 | N195: =#REF!-H195 ->  | U195: =T195-#REF! ->  | V195: =SUM(U195,I195,N195,#REF!,) -> 
I196: 00:00:00 | N196: =#REF!-H196 ->  | U196: =T196-#REF! ->  | V196: =SUM(U196,I196,N196,#REF!,) -> 
I197: 00:00:00 | N197: =#REF!-H197 ->  | U197: =T197-#REF! ->  | V197: =SUM(U197,I197,N197,#REF!,) -> 
I198: 00:00:00 | N198: =#REF!-H198 ->  | U198: =T198-#REF! ->  | V198: =SUM(U198,I198,N198,#REF!,) -> 
I199: 00:00:00 | N199: =#REF!-H199 ->  | U199: =T199-#REF! ->  | V199: =SUM(U199,I199,N199,#REF!,) -> 
I200: 00:00:00 | N200: =#REF!-H200 ->  | U200: =T200-#REF! ->  | V200: =SUM(U200,I200,N200,#REF!,) -> 
I201: 00:00:00 | N201: =#REF!-H201 ->  | U201: =T201-#REF! ->  | V201: =SUM(U201,I201,N201,#REF!,) -> 
I202: 00:00:00 | N202: =#REF!-H202 ->  | U202: =T202-#REF! ->  | V202: =SUM(U202,I202,N202,#REF!,) -> 
... 147 more rows

Sheet 2015 Timing Master
A1: Overall | B1: Place | C1: Bib # | D1: Name | E1: Category | F1: T-size | G1: Age | H1: Swimmer | I1: Race time | J1: Swim Split | K1: T-size | L1: Age | M1: Cyclist | N1: Race time | O1: Train Delay | P1: New Race Time | Q1: Bike Split | R1: T-size | S1: Age | T1: Paddler | U1: Race time | V1: Paddle Split | W1: T-size | X1: Age | Y1: Runnner | Z1: Race time | AA1: Run Split | AB1: Total time
A3: 26 | B3: 1 | C3: 144 | D3: Speed Goggles | E3: Women's Pairs | H3: Suzanne Halet | I3: 00:24:42 | J3: =I3 -> 00:24:42 | K3: S | M3: Suzanne Halet | N3: 01:16:55 | P3: =N3-O3 -> 01:16:55 | Q3: =P3-I3 -> 00:52:13 | R3: M | T3: Emily Marcolini | U3: 01:57:34 | V3: =U3-N3 -> 00:40:39 | W3: S | Y3: Emily Marcolini | Z3: 02:31:14 | AA3: =Z3-U3 -> 00:33:40 | AB3: =SUM(AA3,J3,Q3,V3,) -> 02:31:14
A4: 22 | B4: 2 | C4: 128 | D4: Palistas Locas de Nepahwin | E4: Women's Pairs | H4: Katharine McClosky | I4: 00:25:52 | J4: 00:25:52 | K4: L | M4: Katharine McClosky | N4: 01:26:14 | P4: 01:26:14 | Q4: 01:00:22 | R4: M | T4: Allison White | U4: 02:07:01 | V4: 00:40:47 | W4: s | Y4: Katharine McClosky | Z4: 02:50:01 | AA4: 00:43:00 | AB4: 02:50:01
A5: 24 | B5: 3 | C5: 130 | D5: The Gilly Girls | E5: Women's Pairs | H5: Keegan Anderson | I5: 00:24:29 | J5: 00:24:29 | K5: L | M5: Donna Smrek | N5: 01:24:18 | P5: 01:24:18 | Q5: 00:59:49 | R5: M | T5: Donna Smrek | U5: 02:07:53 | V5: 00:43:35 | W5: L | Y5: Keegan Anderson | Z5: 02:53:40 | AA5: 00:45:47 | AB5: 02:53:40
A6: 25 | B6: 4 | C6: 143 | D6: Team Bravo Zulu | E6: Women's Pairs | H6: Laura Young | I6: 00:20:36 | J6: 00:20:36 | K6: M | M6: Helen Bobiwash | N6: 01:25:00 | P6: 01:25:00 | Q6: 01:04:24 | R6: S | T6: Laura Young | U6: 02:01:58 | V6: 00:36:58 | W6: M | Y6: Helen Bobiwash | Z6: 02:58:13 | AA6: 00:56:15 | AB6: 02:58:13
A7: 21 | B7: 5 | C7: 127 | D7: Double Trouble | E7: Women's Pairs | H7: Paris Macey | I7: 00:19:44 | J7: 00:19:44 | K7: M | M7: Paris Macey | N7: 01:26:21 | P7: 01:26:21 | Q7: 01:06:37 | R7: M | T7: Mylene Lefebvre | U7: 02:14:23 | V7: 00:48:02 | W7: M | Y7: Mylene Lefebvre | Z7: 03:05:23 | AA7: 00:51:00 | AB7: 03:05:23
A8: 23 | B8: 6 | C8: 129 | D8: Why Are We friends? | E8: Women's Pairs | H8: Terri Lepage | I8: 00:25:18 | J8: 00:25:18 | K8: M | M8: Mariane Larose | N8: 01:33:10 | P8: 01:33:10 | Q8: 01:07:52 | R8: M | T8: Mariane Larose | U8: 02:20:33 | V8: 00:47:23 | W8: M | Y8: Terri Lepage | Z8: 03:14:57 | AA8: 00:54:24 | AB8: 03:14:57
A9: 27 | C9: 133 | E9: Women's Pairs | K9: L | P9: 00:00:00 | R9: M | V9: 00:00:00 | W9: L | AA9: 00:00:00
A10: 10 | B10: 1 | C10: 116 | D10: Colin Ward | E10: Solo m | H10: =D10 -> Colin Ward | I10: 00:24:15 | J10: 00:24:15 | K10: M | M10: =D10 -> Colin Ward | N10: 01:15:41 | P10: 01:15:41 | Q10: 00:51:26 | R10: M | T10: =M10 -> Colin Ward | U10: 01:49:34 | V10: 00:33:53 | W10: M | Y10: =D10 -> Colin Ward | Z10: 02:25:52 | AA10: 00:36:18 | AB10: 02:25:52
A11: 8 | B11: 2 | C11: 114 | D11: Joe Lonsdale | E11: Solo m | H11: Joe Lonsdale | I11: 00:22:40 | J11: 00:22:40 | K11: L | M11: Joe Lonsdale | N11: 01:14:53 | P11: 01:14:53 | Q11: 00:52:13 | R11: L | T11: Joe Lonsdale | U11: 01:49:24 | V11: 00:34:31 | W11: L | Y11: Joe Lonsdale | Z11: 02:27:59 | AA11: 00:38:35 | AB11: 02:27:59
A12: 9 | B12: 3 | C12: 115 | D12: Alex Rose | E12: Solo m | H12: Alex Rose | I12: 00:24:57 | J12: 00:24:57 | K12: M | M12: Alex Rose | N12: 01:16:46 | P12: 01:16:46 | Q12: 00:51:49 | R12: m | T12: Alex Rose | U12: 01:53:40 | V12: 00:36:54 | W12: L | Y12: Alex Rose | Z12: 02:31:52 | AA12: 00:38:12 | AB12: 02:31:52
A13: 12 | B13: 4 | C13: 118 | D13: Clinton Lahnalampi | E13: Solo m | H13: Clinton Lahnalampi | I13: 00:23:06 | J13: 00:23:06 | K13: M | M13: Clinton Lahnalampi | N13: 01:13:21 | P13: 01:13:21 | Q13: 00:50:15 | R13: M | T13: Clinton Lahnalampi | U13: 01:49:18 | V13: 00:35:57 | W13: M | Y13: Clinton Lahnalampi | Z13: 02:32:24 | AA13: 00:43:06 | AB13: 02:32:24
A14: 11 | B14: 5 | C14: 117 | D14: Todd Withers | E14: Solo m | H14: Todd Withers | I14: 00:27:29 | J14: 00:27:29 | K14: M | M14: Todd Withers | N14: 01:27:44 | P14: 01:27:44 | Q14: 01:00:15 | R14: M | T14: Todd Withers | U14: 02:03:24 | V14: 00:35:40 | W14: S | Y14: Todd Withers | Z14: 02:38:30 | AA14: 00:35:06 | AB14: 02:38:30
A15: 13 | B15: 6 | C15: 197 | D15: Thomas Gore | E15: Solo m | H15: Thomas Gore | I15: 00:23:13 | J15: 00:23:13 | K15: L | M15: Thomas Gore | N15: x | R15: S | T15: Thomas Gore | W15: S | Y15: Thomas Gore | AA15: 00:00:00 | AB15: DNF
A16: 14 | C16: 120 | E16: Solo m | H16: 00:00:00 | K16: S | M16: 00:00:00 | P16: 00:00:00 | R16: S | T16: 00:00:00 | V16: 00:00:00 | W16: S | Y16: 00:00:00 | AA16: 00:00:00 | AB16: =SUM(AA16,J16,Q16,V16,) -> 
A17: 1 | B17: 1 | C17: 107 | D17: Sara McIlraith | E17: Solo F | H17: Sara McIlraith | I17: 00:21:52 | J17: 00:21:52 | K17: L | M17: Sara McIlraith | N17: 01:21:42 | P17: 01:21:42 | Q17: 00:59:50 | R17: L | T17: Sara McIlraith | U17: 01:55:40 | V17: 00:33:58 | W17: M | Y17: Sara McIlraith | Z17: 02:29:01 | AA17: 00:33:21 | AB17: 02:29:01
A18: 4 | B18: 2 | C18: 110 | D18: Julie Rathwell | E18: Solo F | H18: Julie Rathwell | I18: 00:19:49 | J18: 00:19:49 | K18: L | M18: Julie Rathwell | N18: 01:14:44 | P18: 01:14:44 | Q18: 00:54:55 | R18: L | T18: Julie Rathwell | U18: 01:53:17 | V18: 00:38:33 | W18: L | Y18: Julie Rathwell | Z18: 02:39:52 | AA18: 00:46:35 | AB18: 02:39:52
A19: 3 | B19: 3 | C19: 109 | D19: Monika Haring | E19: Solo F | H19: Monika Haring | I19: 00:23:58 | J19: 00:23:58 | K19: M | M19: Monika Haring | N19: 01:18:14 | P19: 01:18:14 | Q19: 00:54:16 | R19: M | T19: Monika Haring | U19: 02:00:35 | V19: 00:42:21 | W19: M | Y19: Monika Haring | Z19: 02:40:16 | AA19: 00:39:41 | AB19: 02:40:16
A20: 2 | B20: 4 | C20: 108 | D20: Anik Dennie | E20: Solo F | H20: Anik Dennie | I20: 00:22:42 | J20: 00:22:42 | K20: S | M20: Anik Dennie | N20: 01:25:48 | P20: 01:25:48 | Q20: 01:03:06 | R20: M | T20: Anik Dennie | U20: 02:21:25 | V20: 00:55:37 | W20: M | Y20: Anik Dennie | Z20: 03:16:37 | AA20: 00:55:12 | AB20: 03:16:37
A21: 5 | C21: 111 | E21: Solo F | H21: 00:00:00 | K21: L | M21: 00:00:00 | P21: 00:00:00 | R21: L | T21: 00:00:00 | V21: 00:00:00 | W21: L | Y21: 00:00:00 | AA21: 00:00:00
B22: 1 | C22: 173 | D22: The Millers | E22: mixed pairs | H22: Jenny Ryan | I22: 00:21:38 | J22: 00:21:38 | M22: Jenny Ryan | N22: 01:12:53 | P22: 01:12:53 | Q22: 00:51:15 | T22: Tayte Kosmerly | U22: 01:46:00 | V22: 00:33:07 | Y22: Tayte Kosmerly | Z22: 02:24:00 | AA22: 00:38:00 | AB22: 02:24:00
B23: 2 | C23: 193 | D23: Happy Campers | E23: mixed pairs | H23: Ginny Denomme | I23: 00:20:48 | J23: 00:20:48 | M23: Paul Guerin | N23: 01:18:22 | P23: 01:18:22 | Q23: 00:57:34 | T23: Ginny Denomme | U23: 01:57:59 | V23: 00:39:37 | Y23: Paul Guerin | Z23: 02:37:00 | AA23: 00:39:01 | AB23: 02:37:00
B24: 3 | C24: 195 | D24: New 30 | E24: mixed pairs | H24: Robert Gregoris | I24: 00:19:56 | J24: 00:19:56 | M24: Kelly Louiseize | N24: 01:21:20 | P24: 01:21:20 | Q24: 01:01:24 | T24: Robert Gregoris | U24: 01:50:36 | V24: 00:29:16 | Y24: Kelly Louiseize | Z24: 02:38:15 | AA24: 00:47:39 | AB24: 02:38:15
B25: 4 | C25: 192 | D25: Dave & Anne Show | E25: mixed pairs | H25: Anne Greenboots Boulton | I25: 00:22:39 | J25: 00:22:39 | M25: Dave Hawkins | N25: 01:16:25 | P25: 01:16:25 | Q25: 00:53:46 | T25: Dave Hawkins | U25: 01:57:38 | V25: 00:41:13 | Y25: Anne Greenboots Boulton | Z25: 02:38:57 | AA25: 00:41:19 | AB25: 02:38:57
B26: 5 | C26: 169 | D26: 2x2 | E26: mixed pairs | H26: Buddy Green | I26: 00:13:46 | J26: 00:13:46 | M26: Kelly Bowie | N26: 01:22:35 | P26: 01:22:35 | Q26: 01:08:49 | T26: Buddy Green | U26: 01:52:53 | V26: 00:30:18 | Y26: Kelly Bowie | Z26: 02:39:29 | AA26: 00:46:36 | AB26: 02:39:29
B27: 6 | C27: 171 | D27: You Don't Even Know | E27: mixed pairs | H27: Samantha Tobin | I27: 00:22:25 | J27: 00:22:25 | M27: Charlie Reid | N27: 01:12:47 | P27: 01:12:47 | Q27: 00:50:22 | T27: Samantha Tobin | U27: 01:49:07 | V27: 00:36:20 | Y27: Charlie Reid | Z27: 02:41:53 | AA27: 00:52:46 | AB27: 02:41:53
B28: 7 | C28: 168 | D28: Three Decades Later | E28: mixed pairs | H28: Andre Allore | I28: 00:25:01 | J28: 00:25:01 | M28: Julia Skierszkan | N28: 01:33:08 | P28: 01:33:08 | Q28: 01:08:07 | T28: Andre Allore | U28: 02:11:32 | V28: 00:38:24 | Y28: Julia Skierszkan | Z28: 03:02:15 | AA28: 00:50:43 | AB28: 03:02:15
B29: 8 | C29: 172 | D29: Crohn's Awareness | E29: mixed pairs | H29: Tatiana Allore | I29: 00:25:40 | J29: 00:25:40 | M29: Tatiana Allore | N29: 01:33:16 | P29: 01:33:16 | Q29: 01:07:36 | T29: Edward Allore | U29: 02:18:23 | V29: 00:45:07 | Y29: Tatiana Allore | Z29: 03:07:25 | AA29: 00:49:02 | AB29: 03:07:25
B30: 9 | C30: 170 | D30: Special K's | E30: mixed pairs | H30: Kim Larkman | I30: 00:25:12 | J30: 00:25:12 | M30: Kim Larkman | N30: 01:27:48 | P30: 01:27:48 | Q30: 01:02:36 | T30: Kyle Larkman | U30: 02:19:12 | V30: 00:51:24 | Y30: Kyle Larkman | Z30: 03:11:33 | AA30: 00:52:21 | AB30: 03:11:33
B31: 10 | C31: 151 | E31: mixed pairs | P31: 00:00:00 | V31: 00:00:00 | AA31: 00:00:00
B32: 1 | C32: 160 | D32: MacHaPi | E32: Men's Pairs | H32: Liam Passi | I32: 00:21:21 | J32: 00:21:21 | M32: John Macdonald | N32: 01:11:21 | P32: 01:11:21 | Q32: 00:50:00 | T32: John Macdonald | U32: 01:47:35 | V32: 00:36:14 | Y32: Liam Passi | Z32: 02:16:48 | AA32: 00:29:13 | AB32: 02:16:48
B33: 2 | C33: 166 | D33: Your Guards | E33: Men's Pairs | H33: James Holden | I33: 00:18:58 | J33: 00:18:58 | M33: James Holden | N33: 01:11:01 | P33: 01:11:01 | Q33: 00:52:03 | T33: Glen Young Gregoris | U33: 01:48:42 | V33: 00:37:41 | Y33: Glen Young Gregoris | Z33: 02:25:40 | AA33: 00:36:58 | AB33: 02:25:40
B34: 3 | C34: 158 | D34: 2 Old Farts in the Doghouse | E34: Men's Pairs | H34: Steve Matusch | I34: 00:24:34 | J34: 00:24:34 | M34: Brent Walker | N34: 01:14:30 | P34: 01:14:30 | Q34: 00:49:56 | T34: Brent Walker | U34: 01:48:47 | V34: 00:34:17 | Y34: Steve Matusch | Z34: 02:26:23 | AA34: 00:37:36 | AB34: 02:26:23
B35: 4 | C35: 157 | D35: Skierszkan Brothers | E35: Men's Pairs | H35: Karl Skierszkan | I35: 00:28:52 | J35: =I35 -> 00:28:52 | M35: Simon Skierszkan | N35: 01:28:46 | P35: =N35-O35 -> 01:28:46 | Q35: =P35-I35 -> 00:59:54 | T35: Karl Skierszkan | U35: 02:03:40 | V35: =U35-N35 -> 00:34:54 | Y35: Simon Skierszkan | Z35: 02:48:46 | AA35: =Z35-U35 -> 00:45:06 | AB35: 02:48:46
B36: 5 | C36: 156 | D36: Walk'n'Hop | E36: Men's Pairs | H36: Brad Walker | I36: 00:23:15 | J36: 00:23:15 | M36: Brad Walker | N36: 01:20:20 | P36: 01:20:20 | Q36: 00:57:05 | T36: Scott Hopkins | U36: 01:58:57 | V36: 00:38:37 | Y36: Scott Hopkins | Z36: 02:49:18 | AA36: 00:50:21 | AB36: 02:49:18
B37: 6 | C37: 159 | D37: Tutor & Student | E37: Men's Pairs | H37: Yuhang Xu | I37: 00:32:52 | J37: 00:32:52 | M37: Yuhang Xu | N37: 01:32:30 | P37: 01:32:30 | Q37: 00:59:38 | T37: Joe Farrell | U37: 02:09:31 | V37: 00:37:01 | Y37: Yuhang Xu | Z37: 02:50:10 | AA37: 00:40:39 | AB37: 02:50:10
A38: 35 | C38: 141 | E38: Men's Pairs | K38: M | P38: 00:00:00 | R38: M | V38: 00:00:00 | W38: M | AA38: 00:00:00
B39: 1 | C39: 189 | D39: Four plus One | E39: Four Women | H39: Lindsay Lima | I39: 00:20:39 | J39: 00:20:39 | M39: Tracy Hayes | N39: 01:22:35 | P39: 01:22:35 | Q39: 01:01:56 | T39: Ashley Kerckhoff | U39: 02:02:35 | V39: 00:40:00 | Y39: Shelley Watson | Z39: 02:45:42 | AA39: 00:43:07 | AB39: 02:45:42
B40: 2 | C40: 187 | D40: Great Grand-daughter & Friends | E40: Four Women | H40: Kelly Hotta | I40: 00:15:49 | J40: 00:15:49 | M40: Sue Bale | N40: 01:24:03 | P40: 01:24:03 | Q40: 01:08:14 | T40: Patricia Hennessy | U40: 02:02:56 | V40: 00:38:53 | Y40: Sophie Roberge | Z40: 02:50:54 | AA40: 00:47:58 | AB40: 02:50:54
B41: 3 | C41: 190 | D41: 2 Legit 2 Quit | E41: Four Women | H41: Tania Mariotti | I41: 00:28:59 | J41: 00:28:59 | M41: Renee Maltas | N41: 01:31:18 | P41: 01:31:18 | Q41: 01:02:19 | T41: Chislaine Goudreau | U41: 02:14:41 | V41: 00:43:23 | Y41: Leanne Cecchetto | Z41: 02:56:06 | AA41: 00:41:25 | AB41: 02:56:06
B42: 4 | C42: 186 | D42: Half the Wabbits | E42: Four Women | H42: Karen Broughton | I42: 00:23:12 | J42: 00:23:12 | M42: Karen Renout | N42: 01:26:38 | P42: 01:26:38 | Q42: 01:03:26 | T42: Marcie Neuburger | U42: 02:11:46 | V42: 00:45:08 | Y42: Philippa Spoel | Z42: 03:00:20 | AA42: 00:48:34 | AB42: 03:00:20
B43: 5 | C43: 191 | D43: Mix and Match | E43: Four Women | H43: Laura Bewick | I43: 00:22:26 | J43: 00:22:26 | M43: Kirsten Zazelenchuk | N43: 01:23:09 | P43: 01:23:09 | Q43: 01:00:43 | T43: Helen Loiselle | U43: 02:06:28 | V43: 00:43:19 | Y43: Alison Godwin | Z43: 03:00:48 | AA43: 00:54:20 | AB43: 03:00:48
B44: 6 | C44: 188 | D44: 4 x Forties | E44: Four Women | H44: Laura Stanyon | I44: 00:19:57 | J44: 00:19:57 | M44: Nicola Macey | N44: 01:46:15 | P44: 01:46:15 | Q44: 01:26:18 | T44: Lyne Giroux | U44: 02:41:53 | V44: 00:55:38 | Y44: Tania Burton | Z44: 03:21:30 | AA44: 00:39:37 | AB44: 03:21:30
B45: 7 | C45: 167 | D45: The Pink Panters | E45: Four Mixed | H45: Matt Cays | I45: 00:21:35 | J45: 00:21:35 | M45: Erica Bota | N45: 01:13:39 | P45: 01:13:39 | Q45: 00:52:04 | T45: Matt Cays | U45: 01:48:07 | V45: 00:34:28 | Z45: 02:25:52 | AA45: 00:37:45 | AB45: 02:25:52
B46: 8 | C46: 177 | D46: The Fearsome Foursome | E46: Four Mixed | H46: Jane Russel | I46: 00:22:37 | J46: 00:22:37 | M46: Linda Conroy | N46: 01:19:25 | P46: 01:19:25 | Q46: 00:56:48 | T46: Norm Milford | U46: 01:52:07 | V46: 00:32:42 | Y46: Jarod Milford | Z46: 02:26:51 | AA46: 00:34:44 | AB46: 02:26:51
B47: 9 | C47: 175 | D47: Danger Cat | E47: Four Mixed | H47: Sylvia Donato | I47: 00:20:39 | J47: 00:20:39 | M47: Andrew Noob | N47: 01:16:36 | P47: 01:16:36 | Q47: 00:55:57 | T47: Randy Donato | U47: 01:48:51 | V47: 00:32:15 | Y47: Amanda Nero | Z47: 02:30:47 | AA47: 00:41:56 | AB47: 02:30:47
B48: 10 | C48: 179 | D48: Kerry and Co. | E48: Four Mixed | H48: Lea Bray-Green | I48: 00:21:54 | J48: 00:21:54 | M48: Ali Cummings | N48: 01:22:55 | P48: 01:22:55 | Q48: 01:01:01 | T48: Neal Younggregoris | U48: 02:00:13 | V48: 00:37:18 | Y48: Kerry Abols | Z48: 02:31:48 | AA48: 00:31:35 | AB48: =SUM(AA48,J48,Q48,V48,) -> 02:31:48
B49: 11 | C49: 194 | D49: Wrecked Us Femoris | E49: Four Mixed | H49: Jess Hanson | I49: 00:21:16 | J49: 00:21:16 | M49: Chris Gore | N49: 01:11:15 | P49: 01:11:15 | Q49: 00:49:59 | T49: Bob Hanson | U49: 01:46:59 | V49: 00:35:44 | Y49: Jess Hanson | Z49: 02:33:38 | AA49: 00:46:39 | AB49: 02:33:38
B50: 12 | C50: 178 | D50: Fantastic Four | E50: Four Mixed | H50: Megan Gran | I50: 00:25:50 | J50: 00:25:50 | M50: Paul Prosperi | N50: 01:16:32 | P50: 01:16:32 | Q50: 00:50:42 | T50: Connor Gran | U50: 01:55:05 | V50: 00:38:33 | Y50: Judy Gougeon | Z50: 02:36:15 | AA50: 00:41:10 | AB50: 02:36:15
B51: 13 | C51: 174 | D51: B-Wad Ski Squad | E51: Four Mixed | H51: Liam Marcolini | I51: 00:22:29 | J51: 00:22:29 | M51: Kate Richards | N51: 01:54:42 | P51: 01:54:42 | Q51: 01:32:13 | T51: Adrian Marcolini | U51: 02:35:30 | V51: 00:40:48 | Y51: Allison Caswell | Z51: 03:11:57 | AA51: 00:36:27 | AB51: 03:11:57
B52: 14 | C52: 176 | D52: Beaton'yall | E52: Four Mixed | H52: Nancy Rose | I52: 00:35:17 | J52: 00:35:17 | M52: Kiara Lalande | N52: 01:42:00 | P52: 01:42:00 | Q52: 01:06:43 | T52: Mark Rose | U52: 02:22:46 | V52: 00:40:46 | Y52: Nancy Rose | Z52: 03:13:39 | AA52: 00:50:53 | AB52: 03:13:39
C53: 162 | E53: Four Mixed | P53: 00:00:00 | V53: 00:00:00 | AA53: 00:00:00
B54: 1 | C54: 181 | D54: In Honour of the Kosmerly Clan! | E54: Four Men | H54: Tamara Flannigan | I54: 00:17:21 | J54: 00:17:21 | M54: James Larmer | N54: 01:03:02 | P54: 01:03:02 | Q54: 00:45:41 | T54: John Larmer | U54: 01:33:19 | V54: 00:30:17 | Y54: Pascal Renard | Z54: 01:59:39 | AA54: 00:26:20 | AB54: 01:59:39
B55: 2 | C55: 182 | D55: The French Connection | E55: Four Men | H55: Joshua Post | I55: 00:18:24 | J55: 00:18:24 | M55: Marc Nellis | N55: 01:06:45 | P55: 01:06:45 | Q55: 00:48:21 | T55: Jean-Francois Larochelle | U55: 01:39:07 | V55: 00:32:22 | Y55: Marc Larochelle | Z55: 02:11:54 | AA55: 00:32:47 | AB55: 02:11:54
B56: 3 | C56: 180 | D56: 4 Guys Burgers and Fries | E56: Four Men | H56: Everett Smith | I56: 00:15:36 | J56: 00:15:36 | M56: Kelly Thompson | N56: 01:13:01 | P56: 01:13:01 | Q56: 00:57:25 | T56: Thomas Webb | U56: 01:52:04 | V56: 00:39:03 | Y56: Josh Tillson | Z56: 02:23:01 | AA56: 00:30:57 | AB56: 02:23:01
B57: 4 | C57: 183 | D57: North/South | E57: Four Men | H57: Alex Sarvas | I57: 00:18:31 | J57: 00:18:31 | M57: Brad Smith | N57: 01:19:19 | P57: 01:19:19 | Q57: 01:00:48 | T57: Alain Gauthier | U57: 01:55:45 | V57: 00:36:26 | Y57: Ryan Bradshaw | Z57: 02:28:15 | AA57: 00:32:30 | AB57: 02:28:15
B58: 5 | C58: 184 | D58: Fly By Knights | E58: Four Men | H58: Chris Dodds | I58: 00:20:01 | J58: 00:20:01 | M58: Craig Runciman | N58: 01:20:34 | P58: 01:20:34 | Q58: 01:00:33 | T58: Casey Crowe | U58: 02:17:09 | V58: 00:56:35 | Y58: Reinhardt Grobler | Z58: 02:57:00 | AA58: 00:39:51 | AB58: 02:57:00
C59: 196 | J59: 00:00:00 | P59: 00:00:00 | Q59: 00:00:00 | V59: 00:00:00 | AA59: 00:00:00 | AB59: 00:00:00
C60: 197 | J60: 00:00:00 | P60: 00:00:00 | Q60: 00:00:00 | V60: 00:00:00 | AA60: 00:00:00 | AB60: 00:00:00
C61: 198 | J61: 00:00:00 | P61: 00:00:00 | Q61: 00:00:00 | V61: 00:00:00 | AA61: 00:00:00 | AB61: 00:00:00
C62: 199 | J62: 00:00:00 | P62: 00:00:00 | Q62: 00:00:00 | V62: 00:00:00 | AA62: 00:00:00 | AB62: 00:00:00
C63: 200 | J63: 00:00:00 | P63: 00:00:00 | Q63: 00:00:00 | V63: 00:00:00 | AA63: 00:00:00 | AB63: 00:00:00
C64: 201 | J64: 00:00:00 | P64: 00:00:00 | Q64: 00:00:00 | V64: 00:00:00 | AA64: 00:00:00 | AB64: 00:00:00
C65: 202 | J65: =I65 -> 00:00:00 | P65: =N65-O65 -> 00:00:00 | Q65: =P65-I65 -> 00:00:00 | V65: =U65-N65 -> 00:00:00 | AA65: =Z65-U65 -> 00:00:00 | AB65: =SUM(AA65,J65,Q65,V65,) -> 00:00:00
C66: 203 | J66: 00:00:00 | P66: 00:00:00 | Q66: 00:00:00 | V66: 00:00:00 | AA66: 00:00:00 | AB66: 00:00:00
C67: 204 | J67: 00:00:00 | P67: 00:00:00 | Q67: 00:00:00 | V67: 00:00:00 | AA67: 00:00:00 | AB67: 00:00:00
C68: 205 | J68: 00:00:00 | P68: 00:00:00 | Q68: 00:00:00 | V68: 00:00:00 | AA68: 00:00:00 | AB68: 00:00:00
C69: 206 | J69: 00:00:00 | P69: 00:00:00 | Q69: 00:00:00 | V69: 00:00:00 | AA69: =Z69-U69 -> 00:00:00 | AB69: =SUM(AA69,J69,Q69,V69,) -> 00:00:00
C70: 207 | J70: 00:00:00 | P70: 00:00:00 | Q70: 00:00:00 | V70: 00:00:00 | AA70: 00:00:00 | AB70: 00:00:00
C71: 208 | J71: 00:00:00 | P71: 00:00:00 | Q71: 00:00:00 | V71: 00:00:00 | AA71: 00:00:00 | AB71: 00:00:00
C72: 209 | J72: 00:00:00 | P72: 00:00:00 | Q72: 00:00:00 | V72: 00:00:00 | AA72: 00:00:00 | AB72: 00:00:00
C73: 210 | J73: 00:00:00 | P73: 00:00:00 | Q73: 00:00:00 | V73: 00:00:00 | AA73: 00:00:00 | AB73: 00:00:00
C74: 211 | J74: 00:00:00 | P74: 00:00:00 | Q74: 00:00:00 | V74: 00:00:00 | AA74: 00:00:00 | AB74: 00:00:00
C75: 212 | J75: 00:00:00 | P75: 00:00:00 | Q75: 00:00:00 | V75: 00:00:00 | AA75: 00:00:00 | AB75: 00:00:00
C76: 213 | J76: 00:00:00 | P76: 00:00:00 | Q76: 00:00:00 | V76: 00:00:00 | AA76: 00:00:00 | AB76: 00:00:00
C77: 214 | J77: 00:00:00 | P77: 00:00:00 | Q77: 00:00:00 | V77: 00:00:00 | AA77: 00:00:00 | AB77: 00:00:00
C78: 215 | J78: 00:00:00 | P78: 00:00:00 | Q78: 00:00:00 | V78: 00:00:00 | AA78: 00:00:00 | AB78: 00:00:00
C79: 216 | J79: 00:00:00 | P79: 00:00:00 | Q79: 00:00:00 | V79: 00:00:00 | AA79: 00:00:00 | AB79: 00:00:00
C80: 217 | J80: 00:00:00 | P80: 00:00:00 | Q80: 00:00:00 | V80: 00:00:00 | AA80: 00:00:00 | AB80: 00:00:00
C81: 218 | J81: =I81 -> 00:00:00 | P81: 00:00:00 | Q81: 00:00:00 | V81: 00:00:00 | AA81: 00:00:00 | AB81: 00:00:00
C82: 219 | J82: 00:00:00 | P82: 00:00:00 | Q82: 00:00:00 | V82: 00:00:00 | AA82: 00:00:00 | AB82: 00:00:00
C83: 220 | J83: 00:00:00 | P83: 00:00:00 | Q83: 00:00:00 | V83: 00:00:00 | AA83: 00:00:00 | AB83: 00:00:00
C84: 221 | J84: 00:00:00 | P84: 00:00:00 | Q84: 00:00:00 | V84: 00:00:00 | AA84: 00:00:00 | AB84: 00:00:00
C85: 222 | J85: 00:00:00 | P85: 00:00:00 | Q85: 00:00:00 | V85: 00:00:00 | AA85: 00:00:00 | AB85: 00:00:00
C86: 223 | J86: 00:00:00 | P86: 00:00:00 | Q86: 00:00:00 | V86: 00:00:00 | AA86: 00:00:00 | AB86: 00:00:00
C87: 224 | J87: 00:00:00 | P87: 00:00:00 | Q87: 00:00:00 | V87: 00:00:00 | AA87: 00:00:00 | AB87: 00:00:00
C88: 225 | J88: 00:00:00 | P88: 00:00:00 | Q88: 00:00:00 | V88: 00:00:00 | AA88: 00:00:00 | AB88: 00:00:00
C89: 226 | J89: 00:00:00 | P89: 00:00:00 | Q89: 00:00:00 | V89: 00:00:00 | AA89: 00:00:00 | AB89: 00:00:00
C90: 227 | J90: 00:00:00 | P90: 00:00:00 | Q90: 00:00:00 | V90: 00:00:00 | AA90: 00:00:00 | AB90: 00:00:00
C91: 228 | J91: 00:00:00 | P91: 00:00:00 | Q91: 00:00:00 | V91: 00:00:00 | AA91: 00:00:00 | AB91: 00:00:00
C92: 229 | J92: 00:00:00 | P92: 00:00:00 | Q92: 00:00:00 | V92: 00:00:00 | AA92: 00:00:00 | AB92: 00:00:00
C93: 200 | J93: 00:00:00 | P93: 00:00:00 | Q93: 00:00:00 | V93: 00:00:00 | AA93: 00:00:00 | AB93: 00:00:00
J94: 00:00:00 | P94: 00:00:00 | Q94: 00:00:00 | V94: 00:00:00 | AA94: 00:00:00 | AB94: 00:00:00
C95: =C93+1 -> 201 | E95: DQ | G95: f11 | J95: 00:00:00 | P95: 00:00:00 | Q95: 00:00:00 | V95: 00:00:00 | AA95: 00:00:00 | AB95: 00:00:00
C96: Time | J96: 00:00:00 | P96: 00:00:00 | Q96: 00:00:00 | V96: 00:00:00 | AA96: 00:00:00 | AB96: 00:00:00
C97: =C95+1 -> 202 | E97: DQ | G97: m11 | J97: 00:00:00 | P97: 00:00:00 | Q97: 00:00:00 | V97: 00:00:00 | AA97: 00:00:00 | AB97: 00:00:00
C98: Time | J98: 00:00:00 | P98: 00:00:00 | Q98: 00:00:00 | V98: 00:00:00 | AA98: 00:00:00 | AB98: 00:00:00
C99: =C97+1 -> 203 | E99: DQ | G99: m10 | J99: 00:00:00 | P99: =N99-O99 -> 00:00:00 | Q99: =P99-I99 -> 00:00:00 | V99: 00:00:00 | AA99: 00:00:00 | AB99: 00:00:00
C100: Time | J100: 00:00:00 | P100: 00:00:00 | Q100: 00:00:00 | V100: 00:00:00 | AA100: 00:00:00 | AB100: 00:00:00
C101: =C99+1 -> 204 | E101: DQ | G101: f10 | J101: 00:00:00 | P101: 00:00:00 | Q101: 00:00:00 | V101: 00:00:00 | AA101: 00:00:00 | AB101: 00:00:00
C102: Time | J102: 00:00:00 | P102: 00:00:00 | Q102: 00:00:00 | V102: 00:00:00 | AA102: 00:00:00 | AB102: 00:00:00
C103: =C101+1 -> 205 | E103: DQ | G103: m8 | J103: 00:00:00 | P103: 00:00:00 | Q103: 00:00:00 | V103: 00:00:00 | AA103: 00:00:00 | AB103: 00:00:00
C104: Time | J104: 00:00:00 | P104: 00:00:00 | Q104: 00:00:00 | V104: 00:00:00 | AA104: 00:00:00 | AB104: 00:00:00
C105: =C103+1 -> 206 | E105: DQ | G105: m12 | J105: 00:00:00 | P105: 00:00:00 | Q105: 00:00:00 | V105: 00:00:00 | AA105: 00:00:00 | AB105: 00:00:00
C106: Time | J106: 00:00:00 | P106: 00:00:00 | Q106: 00:00:00 | V106: 00:00:00 | AA106: 00:00:00 | AB106: 00:00:00
C107: =C105+1 -> 207 | E107: DQ | G107: m11 | J107: 00:00:00 | P107: 00:00:00 | Q107: 00:00:00 | V107: 00:00:00 | AA107: 00:00:00 | AB107: 00:00:00
C108: Time | J108: 00:00:00 | P108: 00:00:00 | Q108: 00:00:00 | V108: 00:00:00 | AA108: 00:00:00 | AB108: 00:00:00
C109: =C107+1 -> 208 | E109: DQ | G109: f7 | J109: 00:00:00 | P109: 00:00:00 | Q109: 00:00:00 | V109: 00:00:00 | AA109: 00:00:00 | AB109: 00:00:00
C110: Time | J110: 00:00:00 | P110: 00:00:00 | Q110: 00:00:00 | V110: 00:00:00 | AA110: 00:00:00 | AB110: 00:00:00
C111: =C109+1 -> 209 | E111: DQ | G111: f9 | J111: 00:00:00 | P111: 00:00:00 | Q111: 00:00:00 | V111: 00:00:00 | AA111: 00:00:00 | AB111: 00:00:00
C112: Time | J112: 00:00:00 | P112: 00:00:00 | Q112: 00:00:00 | V112: 00:00:00 | AA112: 00:00:00 | AB112: 00:00:00
C113: =C111+1 -> 210 | E113: DQ | G113: m12 | J113: 00:00:00 | P113: 00:00:00 | Q113: 00:00:00 | V113: 00:00:00 | AA113: 00:00:00 | AB113: 00:00:00
C114: Time | J114: 00:00:00 | P114: 00:00:00 | Q114: 00:00:00 | V114: 00:00:00 | AA114: 00:00:00 | AB114: 00:00:00
C115: =C113+1 -> 211 | E115: DQ | G115: m? | J115: 00:00:00 | P115: 00:00:00 | Q115: 00:00:00 | V115: =U115-N115 -> 00:00:00 | AA115: 00:00:00 | AB115: 00:00:00
C116: Time | J116: 00:00:00 | P116: 00:00:00 | Q116: 00:00:00 | V116: 00:00:00 | AA116: 00:00:00 | AB116: 00:00:00
C117: =C115+1 -> 212 | E117: DQ | G117: m12 | J117: 00:00:00 | P117: 00:00:00 | Q117: 00:00:00 | V117: 00:00:00 | AA117: 00:00:00 | AB117: 00:00:00
C118: Time | J118: 00:00:00 | P118: 00:00:00 | Q118: 00:00:00 | V118: 00:00:00 | AA118: 00:00:00 | AB118: 00:00:00
C119: =C117+1 -> 213 | E119: DQ | G119: f8 | J119: 00:00:00 | P119: 00:00:00 | Q119: 00:00:00 | V119: 00:00:00 | AA119: 00:00:00 | AB119: 00:00:00
C120: Time | J120: 00:00:00 | P120: 00:00:00 | Q120: 00:00:00 | V120: 00:00:00 | AA120: 00:00:00 | AB120: 00:00:00
C121: =C119+1 -> 214 | E121: DQ | G121: m12 | J121: 00:00:00 | P121: 00:00:00 | Q121: 00:00:00 | V121: 00:00:00 | AA121: 00:00:00 | AB121: 00:00:00
C122: Time | J122: 00:00:00 | P122: 00:00:00 | Q122: 00:00:00 | V122: 00:00:00 | AA122: 00:00:00 | AB122: 00:00:00
C123: =C121+1 -> 215 | E123: DQ | G123: f11 | J123: 00:00:00 | P123: 00:00:00 | Q123: 00:00:00 | V123: 00:00:00 | AA123: 00:00:00 | AB123: 00:00:00
C124: Time | J124: 00:00:00 | P124: 00:00:00 | Q124: 00:00:00 | V124: 00:00:00 | AA124: 00:00:00 | AB124: 00:00:00
C125: =C123+1 -> 216 | J125: 00:00:00 | P125: 00:00:00 | Q125: 00:00:00 | V125: 00:00:00 | AA125: 00:00:00 | AB125: 00:00:00
C126: Time | J126: 00:00:00 | P126: 00:00:00 | Q126: 00:00:00 | V126: =U126-N126 -> 00:00:00 | AA126: 00:00:00 | AB126: =SUM(AA126,J126,Q126,V126,) -> 00:00:00
C127: =C125+1 -> 217 | J127: 00:00:00 | P127: 00:00:00 | Q127: 00:00:00 | V127: 00:00:00 | AA127: 00:00:00 | AB127: 00:00:00
C128: Time | J128: 00:00:00 | P128: 00:00:00 | Q128: 00:00:00 | V128: 00:00:00 | AA128: 00:00:00 | AB128: 00:00:00
C129: =C127+1 -> 218 | J129: 00:00:00 | P129: 00:00:00 | Q129: 00:00:00 | V129: 00:00:00 | AA129: 00:00:00 | AB129: 00:00:00
C130: Time | J130: 00:00:00 | P130: 00:00:00 | Q130: 00:00:00 | V130: 00:00:00 | AA130: 00:00:00 | AB130: 00:00:00
C131: =C129+1 -> 219 | J131: 00:00:00 | P131: 00:00:00 | Q131: 00:00:00 | V131: 00:00:00 | AA131: 00:00:00 | AB131: 00:00:00
C132: Time | J132: 00:00:00 | P132: 00:00:00 | Q132: 00:00:00 | V132: 00:00:00 | AA132: 00:00:00 | AB132: 00:00:00
C133: =C131+1 -> 220 | J133: 00:00:00 | P133: 00:00:00 | Q133: 00:00:00 | V133: 00:00:00 | AA133: =Z133-U133 -> 00:00:00 | AB133: =SUM(AA133,J133,Q133,V133,) -> 00:00:00
C134: Time | J134: 00:00:00 | P134: 00:00:00 | Q134: 00:00:00 | V134: 00:00:00 | AA134: 00:00:00 | AB134: 00:00:00
C135: =C133+1 -> 221 | J135: 00:00:00 | P135: 00:00:00 | Q135: 00:00:00 | V135: 00:00:00 | AA135: 00:00:00 | AB135: 00:00:00
C136: Time | J136: 00:00:00 | P136: 00:00:00 | Q136: 00:00:00 | V136: 00:00:00 | AA136: 00:00:00 | AB136: 00:00:00
C137: =C135+1 -> 222 | J137: 00:00:00 | P137: 00:00:00 | Q137: 00:00:00 | V137: 00:00:00 | AA137: 00:00:00 | AB137: 00:00:00
C138: Time | J138: 00:00:00 | P138: 00:00:00 | Q138: 00:00:00 | V138: 00:00:00 | AA138: 00:00:00 | AB138: 00:00:00
C139: =C137+1 -> 223 | J139: 00:00:00 | P139: 00:00:00 | Q139: 00:00:00 | V139: 00:00:00 | AA139: 00:00:00 | AB139: 00:00:00
J140: 00:00:00 | P140: 00:00:00 | Q140: 00:00:00 | V140: 00:00:00 | AA140: 00:00:00 | AB140: 00:00:00
J141: 00:00:00 | P141: 00:00:00 | Q141: 00:00:00 | V141: 00:00:00 | AA141: 00:00:00 | AB141: 00:00:00
J142: 00:00:00 | P142: 00:00:00 | Q142: 00:00:00 | V142: 00:00:00 | AA142: 00:00:00 | AB142: 00:00:00
J143: 00:00:00 | P143: 00:00:00 | Q143: 00:00:00 | V143: 00:00:00 | AA143: 00:00:00 | AB143: 00:00:00
J144: 00:00:00 | P144: 00:00:00 | Q144: 00:00:00 | V144: 00:00:00 | AA144: 00:00:00 | AB144: 00:00:00
J145: =I145 -> 00:00:00 | P145: 00:00:00 | Q145: 00:00:00 | V145: 00:00:00 | AA145: 00:00:00 | AB145: 00:00:00
J146: 00:00:00 | P146: 00:00:00 | Q146: 00:00:00 | V146: 00:00:00 | AA146: 00:00:00 | AB146: 00:00:00
J147: 00:00:00 | P147: 00:00:00 | Q147: 00:00:00 | V147: 00:00:00 | AA147: 00:00:00 | AB147: 00:00:00
J148: 00:00:00 | P148: 00:00:00 | Q148: 00:00:00 | V148: 00:00:00 | AA148: 00:00:00 | AB148: 00:00:00
J149: 00:00:00 | P149: 00:00:00 | Q149: 00:00:00 | V149: 00:00:00 | AA149: 00:00:00 | AB149: 00:00:00
J150: 00:00:00 | P150: 00:00:00 | Q150: 00:00:00 | V150: 00:00:00 | AA150: 00:00:00 | AB150: 00:00:00
J151: 00:00:00 | P151: 00:00:00 | Q151: 00:00:00 | V151: 00:00:00 | AA151: 00:00:00 | AB151: 00:00:00
J152: 00:00:00 | P152: 00:00:00 | Q152: 00:00:00 | V152: 00:00:00 | AA152: 00:00:00 | AB152: 00:00:00
J153: 00:00:00 | P153: 00:00:00 | Q153: 00:00:00 | V153: 00:00:00 | AA153: 00:00:00 | AB153: 00:00:00
J154: 00:00:00 | P154: 00:00:00 | Q154: 00:00:00 | V154: 00:00:00 | AA154: 00:00:00 | AB154: 00:00:00
J155: 00:00:00 | P155: 00:00:00 | Q155: 00:00:00 | V155: 00:00:00 | AA155: 00:00:00 | AB155: 00:00:00
J156: 00:00:00 | P156: 00:00:00 | Q156: 00:00:00 | V156: 00:00:00 | AA156: 00:00:00 | AB156: 00:00:00
J157: 00:00:00 | P157: 00:00:00 | Q157: 00:00:00 | V157: 00:00:00 | AA157: 00:00:00 | AB157: 00:00:00
J158: 00:00:00 | P158: 00:00:00 | Q158: 00:00:00 | V158: 00:00:00 | AA158: 00:00:00 | AB158: 00:00:00
J159: 00:00:00 | P159: 00:00:00 | Q159: 00:00:00 | V159: 00:00:00 | AA159: 00:00:00 | AB159: 00:00:00
J160: 00:00:00 | P160: 00:00:00 | Q160: 00:00:00 | V160: 00:00:00 | AA160: 00:00:00 | AB160: 00:00:00
J161: 00:00:00 | P161: 00:00:00 | Q161: 00:00:00 | V161: 00:00:00 | AA161: 00:00:00 | AB161: 00:00:00
J162: 00:00:00 | P162: 00:00:00 | Q162: 00:00:00 | V162: 00:00:00 | AA162: 00:00:00 | AB162: 00:00:00
J163: 00:00:00 | P163: =N163-O163 -> 00:00:00 | Q163: =P163-I163 -> 00:00:00 | V163: 00:00:00 | AA163: 00:00:00 | AB163: 00:00:00
J164: 00:00:00 | P164: 00:00:00 | Q164: 00:00:00 | V164: 00:00:00 | AA164: 00:00:00 | AB164: 00:00:00
J165: 00:00:00 | P165: 00:00:00 | Q165: 00:00:00 | V165: 00:00:00 | AA165: 00:00:00 | AB165: 00:00:00
J166: 00:00:00 | P166: 00:00:00 | Q166: 00:00:00 | V166: 00:00:00 | AA166: 00:00:00 | AB166: 00:00:00
J167: 00:00:00 | P167: 00:00:00 | Q167: 00:00:00 | V167: 00:00:00 | AA167: 00:00:00 | AB167: 00:00:00
J168: 00:00:00 | P168: 00:00:00 | Q168: 00:00:00 | V168: 00:00:00 | AA168: 00:00:00 | AB168: 00:00:00
J169: 00:00:00 | P169: 00:00:00 | Q169: 00:00:00 | V169: 00:00:00 | AA169: 00:00:00 | AB169: 00:00:00
J170: 00:00:00 | P170: 00:00:00 | Q170: 00:00:00 | V170: 00:00:00 | AA170: 00:00:00 | AB170: 00:00:00
J171: 00:00:00 | P171: 00:00:00 | Q171: 00:00:00 | V171: 00:00:00 | AA171: 00:00:00 | AB171: 00:00:00
J172: 00:00:00 | P172: 00:00:00 | Q172: 00:00:00 | V172: 00:00:00 | AA172: 00:00:00 | AB172: 00:00:00
J173: 00:00:00 | P173: 00:00:00 | Q173: 00:00:00 | V173: 00:00:00 | AA173: 00:00:00 | AB173: 00:00:00
J174: 00:00:00 | P174: 00:00:00 | Q174: 00:00:00 | V174: 00:00:00 | AA174: 00:00:00 | AB174: 00:00:00
J175: 00:00:00 | P175: 00:00:00 | Q175: 00:00:00 | V175: 00:00:00 | AA175: 00:00:00 | AB175: 00:00:00
J176: 00:00:00 | P176: 00:00:00 | Q176: 00:00:00 | V176: 00:00:00 | AA176: 00:00:00 | AB176: 00:00:00
J177: 00:00:00 | P177: 00:00:00 | Q177: 00:00:00 | V177: 00:00:00 | AA177: 00:00:00 | AB177: 00:00:00
J178: 00:00:00 | P178: 00:00:00 | Q178: 00:00:00 | V178: 00:00:00 | AA178: 00:00:00 | AB178: 00:00:00
J179: 00:00:00 | P179: 00:00:00 | Q179: 00:00:00 | V179: =U179-N179 -> 00:00:00 | AA179: 00:00:00 | AB179: 00:00:00
J180: 00:00:00 | P180: 00:00:00 | Q180: 00:00:00 | V180: 00:00:00 | AA180: 00:00:00 | AB180: 00:00:00
J181: 00:00:00 | P181: 00:00:00 | Q181: 00:00:00 | V181: 00:00:00 | AA181: 00:00:00 | AB181: 00:00:00
J182: 00:00:00 | P182: 00:00:00 | Q182: 00:00:00 | V182: 00:00:00 | AA182: 00:00:00 | AB182: 00:00:00
J183: 00:00:00 | P183: 00:00:00 | Q183: 00:00:00 | V183: 00:00:00 | AA183: 00:00:00 | AB183: 00:00:00
J184: 00:00:00 | P184: 00:00:00 | Q184: 00:00:00 | V184: 00:00:00 | AA184: 00:00:00 | AB184: 00:00:00
J185: 00:00:00 | P185: 00:00:00 | Q185: 00:00:00 | V185: 00:00:00 | AA185: 00:00:00 | AB185: 00:00:00
J186: 00:00:00 | P186: 00:00:00 | Q186: 00:00:00 | V186: 00:00:00 | AA186: 00:00:00 | AB186: 00:00:00
J187: 00:00:00 | P187: 00:00:00 | Q187: 00:00:00 | V187: 00:00:00 | AA187: 00:00:00 | AB187: 00:00:00
J188: 00:00:00 | P188: 00:00:00 | Q188: 00:00:00 | V188: 00:00:00 | AA188: 00:00:00 | AB188: 00:00:00
J189: 00:00:00 | P189: 00:00:00 | Q189: 00:00:00 | V189: 00:00:00 | AA189: 00:00:00 | AB189: 00:00:00
J190: 00:00:00 | P190: 00:00:00 | Q190: 00:00:00 | V190: 00:00:00 | AA190: 00:00:00 | AB190: 00:00:00
J191: 00:00:00 | P191: 00:00:00 | Q191: 00:00:00 | V191: 00:00:00 | AA191: 00:00:00 | AB191: 00:00:00
J192: 00:00:00 | P192: 00:00:00 | Q192: 00:00:00 | V192: 00:00:00 | AA192: 00:00:00 | AB192: 00:00:00
J193: 00:00:00 | P193: 00:00:00 | Q193: 00:00:00 | V193: 00:00:00 | AA193: 00:00:00 | AB193: 00:00:00
J194: 00:00:00 | P194: 00:00:00 | Q194: 00:00:00 | V194: 00:00:00 | AA194: 00:00:00 | AB194: 00:00:00
J195: 00:00:00 | P195: 00:00:00 | Q195: 00:00:00 | V195: 00:00:00 | AA195: 00:00:00 | AB195: 00:00:00
J196: 00:00:00 | P196: 00:00:00 | Q196: 00:00:00 | V196: 00:00:00 | AA196: 00:00:00 | AB196: 00:00:00
J197: 00:00:00 | P197: 00:00:00 | Q197: 00:00:00 | V197: 00:00:00 | AA197: =Z197-U197 -> 00:00:00 | AB197: =SUM(AA197,J197,Q197,V197,) -> 00:00:00
J198: 00:00:00 | P198: 00:00:00 | Q198: 00:00:00 | V198: 00:00:00 | AA198: 00:00:00 | AB198: 00:00:00
J199: 00:00:00 | P199: 00:00:00 | Q199: 00:00:00 | V199: 00:00:00 | AA199: 00:00:00 | AB199: 00:00:00
J200: 00:00:00 | P200: 00:00:00 | Q200: 00:00:00 | V200: 00:00:00 | AA200: 00:00:00 | AB200: 00:00:00
J201: 00:00:00 | P201: 00:00:00 | Q201: 00:00:00 | V201: 00:00:00 | AA201: 00:00:00 | AB201: 00:00:00
... 120 more rows

Sheet Sheet2

Sheet Sheet3
